Workbook

Sheet Start
B1: OM DENNE MALEN
B2: Bruk denne analyse av kundelønnsomhet til å spore kundeaktivitet, Kostnad for salg og andre kostnader.
B3: Fyll ut informasjon som firmanavn og dato og detaljer i tabeller.
B4: Verdier i celler som inneholder formler og sammendrag av måledata beregnes automatisk, og diagrammet oppdateres.
B5: Obs!
B6: Du finner flere instruksjoner i kolonne A i regnearket KUNDELØNNSOMHET. Denne teksten har blitt skjult med vilje. Hvis du vil fjerne teksten, velger du kolonne A og deretter SLETT. Hvis du vil vise teksten, velger du kolonne A og endrer skriftfarge.
B7: Hvis du vil finne ut mer om tabeller i dette regnearket, kan du trykke på SKIFT og F10 i en tabell, velge alternativet TABELL og deretter ALTERNATIV TEKST.

Sheet Kundelønnsomhet
A1: Opprett analyse av kundelønnsomhet i dette regnearket. Du finner nyttige instruksjoner om hvordan du bruker dette regnearket, i cellene i denne kolonnen. Trykk på PIL NED for å komme i gang.
A2: Skriv inn firmanavn i cellen til høyre. | B2: Firmanavn
A3: Tittelen på dette regnearket finnes i cellen til høyre | B3: Analyse av kundelønnsomhet
A4: Skriv inn dato i cellen til høyre. | B4: Dato
A5: Tips finnes i cellen til høyre. | B5: Grå celler beregnes for deg. Du trenger ikke å skrive inn noe i dem.
A6: Skriv inn detaljer i tabellen Kundeaktivitet som starter i cellen til høyre. Neste instruksjon finnes i celle A12. | B6: Kundeaktivitet: | C6: Segmentnavn 1 | D6: Segmentnavn 2 | E6: Segmentnavn 3 | F6: Totalt
B7: Antall aktive kunder – begynnelsen av perioden | C7: 5 | D7: 8 | E7: 8 | F7: =SUM(C7:E7) -> 21
B8: Antall kunder som er lagt til | C8: 2 | D8: 4 | E8: 4 | F8: =SUM(C8:E8) -> 10
B9: Antall tapte/avsluttede kunder | C9: -1 | D9: -2 | E9: -2 | F9: =SUM(C9:E9) -> -5
B10: Antall aktive kunder – slutten av perioden | C10: =SUBTOTAL(109,Kundeaktivitet[Segmentnavn 1]) -> 6 | D10: =SUBTOTAL(109,Kundeaktivitet[Segmentnavn 2]) -> 10 | E10: =SUBTOTAL(109,Kundeaktivitet[Segmentnavn 3]) -> 10 | F10: =SUBTOTAL(109,Kundeaktivitet[Totalt]) -> 26
A12: Skriv inn detaljer i tabellen Lønnsomhetsanalyse som starter i cellen til høyre. Neste instruksjon finnes i celle A16. | B12: Lønnsomhetsanalyse: | C12: Segmentnavn 1 | D12: Segmentnavn 2 | E12: Segmentnavn 3 | F12: Totalt
B13: Omsetning per segment | C13: kr 1,500,000.00 | D13: kr 1,800,000.00 | E13: kr 2,500,000.00 | F13: =SUM(Lønnsomhetsanalyse[[#This Row],[Segmentnavn 1]:[Segmentnavn 3]]) -> kr 5,800,000.00
B14: Vekting | C14: =+C13/$F$13 -> 26% | D14: =+D13/$F$13 -> 31% | E14: =+E13/$F$13 -> 43% | F14: =SUM(Lønnsomhetsanalyse[[#This Row],[Segmentnavn 1]:[Segmentnavn 3]]) -> 100%
A16: Skriv inn detaljer i tabellen Kostnad for salg som starter i cellen til høyre. Neste instruksjon finnes i celle A23. | B16: Kostnad for salg: | C16: Segmentnavn 1 | D16: Segmentnavn 2 | E16: Segmentnavn 3 | F16: Totalt
B17: Kontinuerlige tjeneste- og støttekostnader | C17: kr 1,000,000.00 | D17: kr 1,400,000.00 | E17: kr 1,400,000.00 | F17: =SUM(C17:E17) -> kr 3,800,000.00
B18: Andre direkte kundekostnader | C18: kr 200,000.00 | D18: kr 100,000.00 | E18: kr 100,000.00 | F18: =SUM(C18:E18) -> kr 400,000.00
B19: Totale salgskostnader | C19: =SUM(C17:C18) -> kr 1,200,000.00 | D19: =SUM(D17:D18) -> kr 1,500,000.00 | E19: =SUM(E17:E18) -> kr 1,500,000.00 | F19: =SUM(F17:F18) -> kr 4,200,000.00
B20: Dekningsbidrag | C20: =+C13-C19 -> kr 300,000.00 | D20: =+D13-D19 -> kr 300,000.00 | E20: =+E13-E19 -> kr 1,000,000.00 | F20: =+F13-F19 -> kr 1,600,000.00
B21: Vekting | C21: =MAX(0, MIN(1,C20/$F$20)) -> 19% | D21: =MAX(0, MIN(1,D20/$F$20)) -> 19% | E21: =MAX(0, MIN(1,E20/$F$20)) -> 63% | F21: =SUM(C21:E21) -> 100%
A23: Skriv inn detaljer i tabellen Andre kostnader i cellen til høyre. Neste instruksjon finnes i celle A31. | B23: Andre kostnader: | C23: Segmentnavn 1 | D23: Segmentnavn 2 | E23: Segmentnavn 3 | F23: Totalt
B24: Kundeanskaffelse | C24: kr 105,000.00 | D24: kr 120,000.00 | E24: kr 235,000.00 | F24: =SUM(Andre_kostnader[[#This Row],[Segmentnavn 1]:[Segmentnavn 3]]) -> kr 460,000.00
B25: Kundemarkedsføring | C25: kr 150,000.00 | D25: kr 125,000.00 | E25: kr 275,000.00 | F25: =SUM(C25:E25) -> kr 550,000.00
B26: Kundeavslutning | C26: kr 80,000.00 | D26: kr 190,000.00 | E26: kr 140,000.00 | F26: =SUM(C26:E26) -> kr 410,000.00
B27: Andre totale kundekostnader | C27: =SUM(C24:C26) -> kr 335,000.00 | D27: =SUM(D24:D26) -> kr 435,000.00 | E27: =SUM(E24:E26) -> kr 650,000.00 | F27: =SUM(F24:F26) -> kr 1,420,000.00
B28: Kundelønnsomhet etter segment | C28: =+C20-C27 -> -kr 35,000.00 | D28: =+D20-D27 -> -kr 135,000.00 | E28: =+E20-E27 -> kr 350,000.00 | F28: =SUM(C28:E28) -> kr 180,000.00
B29: Vekting | C29: =MAX(0,MIN(1, C28/$F$28)) -> 0% | D29: =MAX(0,MIN(1, D28/$F$28)) -> 0% | E29: =MAX(0,MIN(1, E28/$F$28)) -> 100% | F29: =SUM(C29:E29) -> 100%
A31: Tabellen Sammendrag av måledata som starter i cellen til høyre, oppdateres automatisk. Neste instruksjon finnes i celle A37. | B31: Sammendrag av måledata: | C31: Segmentnavn 1 | D31: Segmentnavn 2 | E31: Segmentnavn 3 | F31: Trend
B32: Gjennomsnittlig pris per anskaffet kunde | C32: =+C24/C8 -> kr 52,500.00 | D32: =+D24/D8 -> kr 30,000.00 | E32: =+E24/E8 -> kr 58,750.00
B33: Gjennomsnittlig kostnad per avsluttet kunde | C33: =-C26/C9 -> kr 80,000.00 | D33: =-D26/D9 -> kr 95,000.00 | E33: =-E26/E9 -> kr 70,000.00
B34: Gjennomsnittlig markedsføringskostnad per aktiv kunde | C34: =+C26/Kundeaktivitet[[#Totals],[Segmentnavn 1]] -> kr 13,333.33 | D34: =+D25/Kundeaktivitet[[#Totals],[Segmentnavn 2]] -> kr 12,500.00 | E34: =+E25/Kundeaktivitet[[#Totals],[Segmentnavn 3]] -> kr 27,500.00
B35: Gjennomsnittlig fortjeneste (tap) per kunde | C35: =+C29/Kundeaktivitet[[#Totals],[Segmentnavn 1]] -> kr 0.00 | D35: =+D28/Kundeaktivitet[[#Totals],[Segmentnavn 2]] -> -kr 13,500.00 | E35: =+E28/Kundeaktivitet[[#Totals],[Segmentnavn 3]] -> kr 35,000.00
A37: Gruppert stolpediagram som viser sammendrag av måledata per kundesegment, finnes i cellen til høyre. | B37: Gruppert stolpediagram som viser sammendrag av måledata per kundesegment, finnes i denne cellen.
